fUSD/lending_fUSD_20250308
["ID","MTS","AMOUNT","RATE_DAILY","PERIOD"]
[355618527,1741392609101,-150.0,8.219e-05,3]
[355618529,1741392631930,-3.0,8.219e-05,3]
[355618530,1741392631942,-224.52,8.219e-05,2]
[355618531,1741392631952,-250.0,8.853e-05,2]
[355618532,1741392631962,-159.91,8.853e-05,2]
[355618533,1741392631972,-300.0,8.94e-05,2]
[355618534,1741392631981,-288.73999672,8.941e-05,2]
[355618535,1741392631994,-2927.80998168,8.941e-05,2]
[355618536,1741392632006,-482.14401582,8.941e-05,2]
[355618537,1741392632124,-310.58,8.941e-05,2]
[355618538,1741392632134,-159.91,8.941e-05,2]
[355618539,1741392632144,-253.11,9.019e-05,2]
[355618540,1741392632153,-159.91,9.03e-05,2]
[355618541,1741392632162,-193.67,9.071e-05,2]
[355618542,1741392632171,-159.91,9.118e-05,2]
[355618543,1741392632181,-1000.0,9.156e-05,2]
[355618544,1741392632191,-891.35,9.16e-05,2]
[355618545,1741392632201,-777.94,9.16e-05,2]
[355618546,1741392632210,-159.91,9.207e-05,2]
[355618547,1741392632219,-150.0,9.277e-05,2]
[355618548,1741392632229,-302.08,9.278e-05,2]
[355618549,1741392632239,-301.06,9.278e-05,2]
[355618550,1741392632249,-300.0,9.278e-05,2]
[355618551,1741392632259,-348.94,9.278e-05,2]
[355618552,1741392632270,-150.0,9.278e-05,2]
[355618553,1741392632280,-300.0,9.278e-05,2]
[355618554,1741392632290,-440.59,9.278e-05,2]
[355618555,1741392632302,-344.81,9.278e-05,2]
[355618556,1741392632312,-440.59,9.278e-05,2]
[355618557,1741392632322,-344.81,9.278e-05,2]
[355618558,1741392632332,-440.59,9.278e-05,2]
[355618559,1741392632341,-440.59,9.278e-05,2]
[355618561,1741392632350,-153.0,9.279e-05,3]
[355618563,1741392632359,-159.91,9.295e-05,2]
[355618565,1741392632369,-159.91,9.384e-05,2]
[355618567,1741392632378,-777.52,9.441e-05,2]
[355618569,1741392632388,-1604.89292283,9.499e-05,2]
[355618571,1741392632398,-150.0,9.562e-05,7]
[355618573,1741392632407,-600.0,9.62e-05,2]
[355618575,1741392632417,-1000.0,9.735e-05,2]
[355618577,1741392632426,-150.0,9.765e-05,2]
[355618579,1741392632435,-1000.0,9.804e-05,2]
[355618581,1741392632444,-482.58514837,9.817e-05,2]
[355618583,1741392632454,-420.0,9.834e-05,2]
[355618585,1741392632463,-1000.0,9.857e-05,2]
[355618587,1741392632472,-150.0,9.861e-05,2]
[355618589,1741392632482,-1000.0,9.872e-05,2]
[355618591,1741392632491,-1000.0,9.88e-05,2]
[355618593,1741392632501,-1000.0,9.888e-05,2]
[355618595,1741392632510,-9198.2959,9.9e-05,2]
[355618597,1741392632520,-250.623,9.9e-05,2]
[355618599,1741392632534,-1000.0,9.9e-05,2]
[355618601,1741392632546,-1082.6114,9.9e-05,2]
[355618602,1741392632556,-251.17,9.9e-05,2]
[355618603,1741392632566,-1000.0,9.938e-05,2]
[355618604,1741392632579,-1000.0,9.945e-05,2]
[355618605,1741392632588,-150.0,9.966e-05,2]
[355618606,1741392632598,-1000.0,9.972e-05,2]
[355618607,1741392632608,-500.0,9.973e-05,2]
[355618608,1741392632617,-359.52804946,9.973e-05,2]
[355618609,1741392632627,-150.0,9.983e-05,2]
[355618610,1741392632639,-748.83,9.998e-05,2]
[355618611,1741392632649,-1000.0,9.999e-05,2]
[355618612,1741392632659,-982.816,9.999e-05,2]
[355618613,1741392632668,-2072.55,9.999e-05,2]
[355618614,1741392632679,-177.44172198,9.999e-05,2]
[355618615,1741392632689,-456.44890055,9.999e-05,2]
[355618616,1741392632698,-497022.23171611,0.0001,2]
[355618617,1741392632707,-478.26355186,0.0001,2]
[355618618,1741392632718,-215.09677257,0.0001,2]
[355618619,1741392632730,-14723.3,0.0001,2]
[355618620,1741392632741,-201218.18708715,0.0001,2]
[355618631,1741392637859,-8717.47229892,0.0001,2]
[355618632,1741392637976,-5742.0302828,0.0001,2]
[355618684,1741392640145,-2612.30408965,0.0001,2]
[355618685,1741392640237,-52290.0,0.0001,2]
[355618686,1741392640299,-3940.5411029,0.0001,2]
[355618687,1741392640312,-530.37992125,0.0001,2]
[355618692,1741392642919,-255908.04937956,0.0001,2]
[355618693,1741392643700,-1074.03080141,0.0001,2]
[355618694,1741392643711,-701.48807751,0.0001,2]
[355618695,1741392643724,-1759.35999998,0.0001,2]
[355618696,1741392643737,-8679.7,0.0001,2]
[355618697,1741392643776,-1000.0,0.0001,2]
[355618700,1741392645877,-1190.0,0.0001,2]
[355618712,1741393157431,-150.00254486,8.219e-05,2]
[355618713,1741393159545,-300.0,8.219e-05,2]
[355618714,1741393161703,-300.0,8.219e-05,2]
[355618715,1741393163936,-574.39745514,8.219e-05,2]
[355618793,1741393832205,-152.97,9.08e-05,2]
[355618794,1741393832215,-1200.0,9.09e-05,2]
[355618795,1741393832224,-1000.0,9.15e-05,2]
[355618796,1741393832233,-202.96,9.155e-05,2]
[355618797,1741393832243,-909.21401688,9.189e-05,2]
[355618798,1741393832260,-6090.87242378,9.189e-05,2]
[355618799,1741393832269,-152.97,9.189e-05,2]
[355618800,1741393832281,-152.97,9.298e-05,2]
[355618801,1741393832292,-1104.53908939,9.3e-05,2]
[355618802,1741393832314,-874.56091061,9.3e-05,2]
[355618803,1741393832325,-152.97,9.407e-05,2]
[355618804,1741393832336,-152.97,9.516e-05,2]
[355618805,1741393832345,-409.18081439,9.62e-05,2]
[355618806,1741393832358,-190.81918561,9.62e-05,2]
[355618807,1741393832367,-706.3869949,9.62e-05,2]
[355618808,1741393832380,-1754.44863394,9.62e-05,2]
[355618824,1741393838036,-4062.69315947,9.62e-05,2]
[355618825,1741393838049,-3119.21721723,9.62e-05,2]
[355618826,1741393838094,-299.25,9.62e-05,2]
[355618859,1741393840305,-1381.69872212,9.62e-05,2]
[355618887,1741393844467,-643.98590151,9.62e-05,2]
[355618890,1741393846170,-2890.33831613,9.62e-05,2]
[355618891,1741393846223,-1007.3814,9.62e-05,2]
[355618892,1741393846285,-21744.0,9.62e-05,2]
[355618894,1741394347488,-193.31998577,8.219e-05,2]
[355618896,1741394703584,-15000.0,8.19e-05,2]
[355618921,1741394898730,-1080.72001423,8.219e-05,2]
[355619065,1741395032247,-1061.0,8.504e-05,2]
[355619066,1741395032256,-122.0,8.836e-05,2]
[355619067,1741395032463,-178.0,8.836e-05,2]
[355619068,1741395032473,-164.1,8.837e-05,2]
[355619069,1741395032490,-657.9,8.837e-05,2]
[355619070,1741395032501,-289.32,8.837e-05,2]
[355619071,1741395032511,-1061.0,8.951e-05,2]
[355619072,1741395032521,-150.0,9.041e-05,2]
[355619074,1741395032531,-154.93,9.092e-05,2]
[355619075,1741395032540,-1000.0,9.102e-05,2]
[355619076,1741395032550,-300.0,9.142e-05,2]
[355619077,1741395032559,-250.0,9.143e-05,2]
[355619078,1741395032568,-1085.77119428,9.143e-05,2]
[355619084,1741395038361,-13669.36880572,9.143e-05,2]
[355619085,1741395038371,-989.55,9.296e-05,2]
[355619086,1741395038381,-1000.0,9.3e-05,2]
[355619087,1741395038393,-1061.0,9.423e-05,2]
[355619088,1741395038404,-446.57,9.5e-05,2]
[355619089,1741395038414,-150.0,9.5e-05,2]
[355619090,1741395038426,-300.0,9.5e-05,2]
[355619091,1741395038435,-150.0,9.5e-05,2]
[355619092,1741395038445,-1000.0,9.5e-05,2]
[355619093,1741395038454,-1000.0,9.6e-05,2]
[355619094,1741395038463,-154.0,9.62e-05,3]
[355619095,1741395038473,-154.0,9.62e-05,3]
[355619097,1741395038482,-777.52,9.62e-05,2]
[355619099,1741395038491,-600.0,9.62e-05,2]
[355619101,1741395038501,-152.97,9.625e-05,2]
[355619103,1741395038511,-1829.0,9.7e-05,2]
[355619105,1741395038520,-150.0,9.727e-05,2]
[355619107,1741395038529,-150.0,9.731e-05,2]
[355619109,1741395038539,-150.0,9.732e-05,2]
[355619111,1741395038548,-150.0,9.732e-05,2]
[355619113,1741395038557,-150.0,9.734e-05,2]
[355619115,1741395038567,-150.0,9.736e-05,2]
[355619117,1741395038576,-150.0,9.748e-05,2]
[355619119,1741395038585,-150.0,9.748e-05,2]
[355619120,1741395038594,-150.0,9.753e-05,2]
[355619122,1741395038604,-150.0,9.755e-05,2]
[355619124,1741395038613,-150.0,9.758e-05,2]
[355619126,1741395038622,-199.34063373,9.761e-05,2]
[355619128,1741395038631,-150.0,9.762e-05,2]
[355619130,1741395038641,-150.0,9.766e-05,2]
[355619132,1741395038651,-150.0,9.767e-05,2]
[355619134,1741395038660,-150.0,9.77e-05,2]
[355619136,1741395038670,-150.0,9.774e-05,2]
[355619138,1741395038679,-150.0,9.775e-05,2]
[355619141,1741395038692,-150.0,9.777e-05,2]
[355619142,1741395038702,-150.0,9.779e-05,2]
[355619144,1741395038711,-150.0,9.794e-05,2]
[355619146,1741395038721,-150.0,9.794e-05,2]
[355619148,1741395038730,-150.0,9.795e-05,2]
[355619150,1741395038739,-426.38826033,9.8e-05,2]
[355619152,1741395038749,-150.0,9.8e-05,2]
[355619154,1741395038758,-150.0,9.812e-05,2]
[355619156,1741395038767,-150.0,9.822e-05,2]
[355619158,1741395038777,-150.0,9.822e-05,2]
[355619160,1741395038786,-150.0,9.822e-05,2]
[355619162,1741395038796,-150.0,9.824e-05,2]
[355619164,1741395038807,-150.0,9.825e-05,2]
[355619165,1741395038816,-150.0,9.825e-05,2]
[355619166,1741395038826,-150.0,9.827e-05,2]
[355619167,1741395038835,-150.0,9.828e-05,2]
[355619168,1741395038844,-150.0,9.828e-05,2]
[355619169,1741395038854,-150.0,9.834e-05,2]
[355619170,1741395038863,-150.0,9.834e-05,2]
[355619171,1741395038872,-150.0,9.835e-05,2]
[355619172,1741395038882,-150.0,9.836e-05,2]
[355619173,1741395038891,-150.0,9.839e-05,2]
[355619174,1741395038900,-150.0,9.842e-05,2]
[355619175,1741395038910,-150.0,9.852e-05,2]
[355619176,1741395038920,-150.0,9.853e-05,2]
[355619177,1741395038929,-150.0,9.863e-05,2]
[355619178,1741395038939,-150.0,9.872e-05,2]
[355619180,1741395038949,-150.0,9.873e-05,2]
[355619182,1741395038958,-150.0,9.875e-05,2]
[355619184,1741395038967,-150.0,9.876e-05,2]
[355619186,1741395038976,-150.0,9.876e-05,2]
[355619188,1741395038986,-150.0,9.878e-05,2]
[355619190,1741395038995,-150.0,9.879e-05,2]
[355619192,1741395039006,-150.0,9.884e-05,2]
[355619194,1741395039015,-565.0,9.894e-05,2]
[355619196,1741395039025,-150.0,9.894e-05,2]
[355619198,1741395039035,-4080.02793018,9.899e-05,2]
[355619200,1741395039045,-3766.3606,9.9e-05,2]
[355619202,1741395039055,-564.5023,9.9e-05,2]
[355619204,1741395039064,-2927.10928448,9.9e-05,2]
[355619207,1741395039081,-927.93501552,9.9e-05,2]
[355619209,1741395039090,-3239.44525576,9.9e-05,2]
[355619255,1741395040246,-351.27100001,9.9e-05,2]
[355619256,1741395040258,-452.9945539,9.9e-05,2]
[355619257,1741395040302,-547.03466666,9.9e-05,2]
[355619258,1741395040411,-266.6244499,9.9e-05,2]
[355619259,1741395040437,-3553.97594792,9.9e-05,2]
[355619260,1741395040448,-1597.99710519,9.9e-05,2]
[355619261,1741395040459,-691.13045541,9.9e-05,2]
[355619262,1741395040582,-860.48999999,9.9e-05,2]
[355619272,1741395043253,-360.0,9.9e-05,2]
[355619273,1741395043311,-3853.82036526,9.9e-05,2]
[355619274,1741395043321,-1000.0,9.9e-05,2]
[355619275,1741395043331,-1274.835981,9.9e-05,2]
[355619280,1741395044285,-12.725519,9.9e-05,2]
[355619281,1741395044299,-150.0,9.901e-05,2]
[355619282,1741395044314,-150.0,9.908e-05,2]
[355619283,1741395044328,-150.0,9.917e-05,2]
[355619284,1741395044340,-150.0,9.918e-05,2]
[355619285,1741395044356,-308.474681,9.918e-05,2]
[355619286,1741395044376,-752.525319,9.918e-05,2]
[355619287,1741395044386,-150.0,9.922e-05,2]
[355619288,1741395044396,-150.0,9.922e-05,2]
[355619289,1741395044405,-150.0,9.924e-05,2]
[355619290,1741395044415,-150.0,9.934e-05,2]
[355619291,1741395044426,-150.0,9.934e-05,2]
[355619292,1741395044435,-150.0,9.938e-05,2]
[355619293,1741395044444,-150.0,9.939e-05,2]
[355619294,1741395044454,-150.0,9.939e-05,2]
[355619295,1741395044463,-150.0,9.945e-05,2]
[355619296,1741395044472,-150.0,9.948e-05,2]
[355619297,1741395044481,-150.0,9.948e-05,2]
[355619298,1741395044490,-150.0,9.95e-05,2]
[355619299,1741395044499,-150.0,9.951e-05,2]
[355619300,1741395044510,-150.0,9.951e-05,2]
[355619301,1741395044518,-150.0,9.954e-05,2]
[355619302,1741395044527,-514.283,9.962e-05,2]
[355619303,1741395044537,-3030.265,9.962e-05,2]
[355619304,1741395044546,-150.0,9.962e-05,2]
[355619305,1741395044556,-248.312,9.962e-05,2]
[355619306,1741395044565,-150.0,9.963e-05,2]
[355619307,1741395044575,-150.0,9.967e-05,2]
[355619308,1741395044585,-500.0,9.973e-05,2]
[355619309,1741395044594,-864.247,9.973e-05,2]
[355619310,1741395044604,-26.24570465,9.974e-05,2]
[355619316,1741395046403,-123.75429535,9.974e-05,2]
[355619317,1741395046412,-150.0,9.975e-05,2]
[355619318,1741395046423,-150.0,9.977e-05,2]
[355619319,1741395046432,-7.02554465,9.979e-05,2]
[355619322,1741395544555,222.0,0.00020111,120]
[355619323,1741395621452,-200.0,8.219e-05,2]
[355619324,1741395623779,-300.0,8.219e-05,2]
[355619325,1741395626847,-300.0,8.219e-05,2]
[355619326,1741395630245,-300.0,8.219e-05,2]
[355619327,1741395632491,-300.0,8.219e-05,2]
[355619558,1741396231611,-162.31,8.219e-05,2]
[355619559,1741396231621,-133.13814184,8.855e-05,2]
[355619560,1741396231640,-166.86185816,8.855e-05,2]
[355619561,1741396231649,-1221.73970423,8.865e-05,2]
[355619562,1741396231660,-927.61514,8.865e-05,2]
[355619563,1741396231676,-770.42515577,8.865e-05,2]
[355619564,1741396231685,-154.93,8.884e-05,2]
[355619565,1741396231694,-792.61717988,8.929e-05,2]
[355619566,1741396231729,-262.18282224,8.929e-05,2]
[355619567,1741396231741,-800.0,8.929e-05,2]
[355619568,1741396231757,-145.19999788,8.929e-05,2]
[355619569,1741396231766,-1000.0,8.971e-05,2]
[355619570,1741396231776,-250.0,8.976e-05,2]
[355619571,1741396231786,-185.71,8.98e-05,2]
[355619572,1741396231795,-237.33,8.999e-05,2]
[355619573,1741396231805,-300.0,9.04e-05,2]
[355619574,1741396231814,-882.02,9.041e-05,2]
[355619575,1741396231824,-34.97390851,9.041e-05,2]
[355619576,1741396231839,-1061.8552203,9.041e-05,2]
[355619577,1741396231850,-98.52087119,9.041e-05,2]
[355619578,1741396231859,-266.67907414,9.62e-05,2]
[355619579,1741396231872,-233.32092586,9.62e-05,2]
[355619580,1741396231882,-600.0,9.62e-05,2]
[355619581,1741396231891,-286.46,9.62e-05,2]
[355619582,1741396231900,-441.09,9.63e-05,2]
[355619583,1741396231910,-150.0,9.722e-05,2]
[355619584,1741396231919,-150.0,9.724e-05,2]
[355619585,1741396231928,-150.0,9.789e-05,2]
[355619586,1741396231937,-150.0,9.82e-05,2]
[355619587,1741396231947,-647.0218,9.868e-05,2]
[355619588,1741396231957,-150.0,9.874e-05,2]
[355619589,1741396231966,-150.0,9.882e-05,2]
[355619590,1741396231976,-225.8013,9.89e-05,2]
[355619591,1741396231985,-368.7441,9.89e-05,2]
[355619592,1741396231995,-5692.52103787,9.899e-05,2]
[355619601,1741396237409,-358.33485164,9.899e-05,2]
[355619602,1741396237421,-4650.04993519,9.899e-05,2]
[355619603,1741396237430,-360.6402,9.899e-05,2]
[355619604,1741396237440,-492.6756,9.899e-05,2]
[355619605,1741396237449,-1150.0,9.9e-05,2]
[355619606,1741396237458,-150.0,9.94e-05,2]
[355619607,1741396237468,-420.0,9.944e-05,2]
[355619608,1741396237477,-10482.0,9.968e-05,2]
[355619609,1741396237487,-700.0,9.97e-05,2]
[355619610,1741396237497,-151.83426386,9.973e-05,2]
[355619611,1741396237506,-150.21767967,9.973e-05,2]
[355619612,1741396237515,-160.03078168,9.973e-05,2]
[355619613,1741396237525,-799.611,9.973e-05,2]
[355619614,1741396237535,-3099.8832418,9.976e-05,2]
[355619615,1741396237545,-18497.2191657,9.976e-05,2]
[355619616,1741396237554,-142.97445535,9.979e-05,2]
[355619617,1741396237563,-2000.0,9.979e-05,2]
[355619618,1741396237572,-200.0,9.979e-05,2]
[355619619,1741396237583,-154.0,9.979e-05,3]
[355619620,1741396237593,-154.0,9.979e-05,3]
[355619621,1741396237602,-2759.7688906,9.983e-05,2]
[355619622,1741396237611,-200.0,9.99e-05,2]
[355619623,1741396237620,-200.0,9.99e-05,2]
[355619624,1741396237629,-200.0,9.99e-05,2]
[355619625,1741396237638,-200.0,9.99e-05,2]
[355619626,1741396237647,-200.0,9.99e-05,2]
[355619627,1741396237657,-200.0,9.99e-05,2]
[355619628,1741396237666,-200.0,9.99e-05,2]
[355619629,1741396237675,-63054.44686961,9.99e-05,2]
[355619630,1741396237684,-151.0,9.993e-05,2]
[355619631,1741396237693,-2821.5813308,9.993e-05,2]
[355619632,1741396237702,-2543.2794198,9.993e-05,2]
[355619633,1741396237712,-2264.9775087,9.993e-05,2]
[355619634,1741396237721,-1986.6755977,9.993e-05,2]
[355619635,1741396237731,-16836.572283,9.993e-05,2]
[355619636,1741396237740,-15175.9254002,9.993e-05,2]
[355619637,1741396237750,-13515.2785175,9.993e-05,2]
[355619638,1741396237760,-11854.6316347,9.993e-05,2]
[355619639,1741396237770,-2518.2891127,9.993e-05,2]
[355619640,1741396237780,-2276.8093348,9.993e-05,2]
[355619641,1741396237790,-2035.3295568,9.993e-05,2]
[355619642,1741396237799,-1793.8497789,9.993e-05,2]
[355619643,1741396237808,-1445.38169817,9.993e-05,2]
[355619644,1741396237818,-1445.38169807,9.993e-05,2]
[355619646,1741396237828,-1445.38169807,9.994e-05,2]
[355619647,1741396237838,-1445.38169807,9.994e-05,2]
[355619649,1741396237847,-201.39217936,9.996e-05,2]
[355619651,1741396237856,-1000.0,9.999e-05,2]
[355619653,1741396237865,-1000.0,9.999e-05,2]
[355619655,1741396237874,-1986.19,9.999e-05,2]
[355619657,1741396237883,-500.0,9.999e-05,2]
[355619659,1741396237892,-500.0,9.999e-05,2]
[355619661,1741396237901,-500.0,9.999e-05,2]
[355619663,1741396237911,-274.85128241,9.999e-05,2]
[355619665,1741396237920,-94124.90473255,0.0001,2]
[355619668,1741396238622,-1374.5550006,0.0001,2]
[355619669,1741396238650,-9712.4213032,0.0001,2]
[355619670,1741396238661,-925.1,0.0001,2]
[355619671,1741396238672,-1057.35125129,0.0001,2]
[355619672,1741396238684,-8185.846207,0.0001,2]
[355619673,1741396238694,-498.014838,0.0001,2]
[355619674,1741396238705,-4730.45172895,0.0001,2]
[355619675,1741396238720,-689.32368187,0.0001,2]
[355619676,1741396238731,-983.76745006,0.0001,2]
[355619677,1741396238743,-1459.44,0.0001,2]
[355619678,1741396238758,-449.500001,0.0001,2]
[355619679,1741396238769,-736.57390145,0.0001,2]
[355619680,1741396238782,-1026.92935832,0.0001,2]
[355619681,1741396238795,-400.97885,0.0001,2]
[355619682,1741396238806,-480.891175,0.0001,2]
[355619683,1741396238818,-528.69395831,0.0001,2]
[355619684,1741396238830,-859.54031443,0.0001,2]
[355619685,1741396238845,-651.08097995,0.0001,2]
[355619686,1741396238858,-10856.87187391,0.0001,2]
[355619687,1741396238869,-5748.33832978,0.0001,2]
[355619688,1741396238879,-4106.6159608,0.0001,2]
[355619689,1741396238890,-794.17380999,0.0001,2]
[355619690,1741396238901,-819.39997364,0.0001,2]
[355619691,1741396238912,-1723.45869062,0.0001,2]
[355619692,1741396238923,-54327.72623502,0.0001,2]
[355619693,1741396238942,-2080.56048412,0.0001,2]
[355619694,1741396238953,-1235.0,0.0001,2]
[355619701,1741396239540,-1445.38169807,9.994e-05,2]
[355619702,1741396239550,-1269.39424942,0.0001,2]
[355619703,1741396239658,-5000.0,0.0001,2]
[355619704,1741396239719,-438.05390023,0.0001,2]
[355619705,1741396239732,-5001.0461434,0.0001,2]
[355619706,1741396239785,-655.28295906,0.0001,2]
[355619730,1741396243544,-315.23946352,0.0001,2]
[355619731,1741396243555,-31222.81431666,0.0001,2]
[355619732,1741396243575,-575.84999999,0.0001,2]
[355619733,1741396243590,-1486.57647605,0.0001,2]
[355619734,1741396243601,-936.55488806,0.0001,2]
[355619735,1741396243612,-2785.95372564,0.0001,2]
[355619736,1741396243634,-311.19795621,0.0001,2]
[355619737,1741396245403,-1445.38169807,9.995e-05,2]
[355619738,1741396245413,-4152.44802176,0.0001,2]
[355619739,1741396245625,-219136.81590662,0.0001,2]
[355619740,1741396245634,-209902.8655801,0.0001,2]
[355619741,1741396245642,-200.0,0.0001,2]
[355619742,1741396245651,-200.0,0.0001,2]
[355619743,1741396245660,-200.0,0.0001,2]
[355619744,1741396245668,-200.0,0.0001,2]
[355619745,1741396245677,-178.0,0.0001,2]
[355619746,1741396245686,-178.0,0.0001,2]
[355619747,1741396245695,-178.0,0.0001,2]
[355619748,1741396245704,-178.0,0.0001,2]
[355619749,1741396245713,-38379.1764307,0.0001,2]
[355619750,1741396245729,-252.71462698,0.0001,2]
[355619751,1741396245741,-1237.2,0.0001,2]
[355619752,1741396245755,-10133.0,0.0001,2]
[355619753,1741396245791,-400.0776593,0.0001,2]
[355619754,1741396245803,-1024.84014376,0.0001,2]
[355619763,1741396352221,-154.09,0.000139,31]
[355619764,1741396352247,-154.09,0.000139,31]
[355619765,1741396352272,-154.09,0.000139,31]
[355619766,1741396352298,-154.09,0.000139,31]
[355619767,1741396352321,-154.09,0.000139,31]
[355619768,1741396352345,-154.09,0.000139,31]
[355619769,1741396352368,-154.09,0.000139,31]
[355619773,1741396393179,-9744.0,0.00012,7]
[355619774,1741396443296,-4000.0,0.00012874,5]
[355619775,1741396443320,-6065.44462465,0.00012999,5]
[355619891,1741397431827,-1496.45,8.219e-05,2]
[355619892,1741397431837,-300.0,8.8e-05,5]
[355619893,1741397431847,-528.90669,8.8e-05,5]
[355619894,1741397431856,-152.97,8.97e-05,2]
[355619895,1741397431865,-1000.0,8.995e-05,2]
[355619896,1741397431875,-200.0,9.041e-05,2]
[355619897,1741397431884,-250.0,9.041e-05,2]
[355619898,1741397431893,-1255.2,9.238e-05,2]
[355619899,1741397431903,-150.0,9.312e-05,2]
[355619900,1741397431914,-418.0,9.32e-05,2]
[355619901,1741397431924,-418.0,9.54e-05,2]
[355619902,1741397431934,-6442.50419,9.581e-05,2]
[355619903,1741397431943,-158.54711,9.581e-05,2]
[355619904,1741397431953,-194.443484,9.581e-05,2]
[355619905,1741397431963,-4271.648883,9.581e-05,2]
[355619906,1741397431973,-150.0,9.586e-05,2]
[355619907,1741397431985,-6442.50419,9.587e-05,2]
[355619908,1741397431994,-6442.50419,9.587e-05,2]
[355619909,1741397432004,-158.54711,9.587e-05,2]
[355619910,1741397432014,-158.54711,9.587e-05,2]
[355619911,1741397432023,-194.443484,9.587e-05,2]
[355619912,1741397432033,-194.443484,9.587e-05,2]
[355619913,1741397432042,-4271.648883,9.587e-05,2]
[355619914,1741397432052,-4271.648883,9.587e-05,2]
[355619915,1741397432062,-4852.23930861,9.588e-05,2]
[355619916,1741397432074,-387.0,9.588e-05,2]
[355619917,1741397432085,-1101.0,9.588e-05,2]
[355619918,1741397432140,-102.26488139,9.588e-05,2]
[355619919,1741397432151,-158.54711,9.588e-05,2]
[355619920,1741397432160,-194.443484,9.588e-05,2]
[355619922,1741397432172,-2091.16965351,9.588e-05,2]
[355619924,1741397432187,-2180.47922949,9.588e-05,2]
[355619926,1741397432199,-6442.50419,9.592e-05,2]
[355619927,1741397432211,-158.54711,9.592e-05,2]
[355619928,1741397432220,-194.443484,9.592e-05,2]
[355619929,1741397432229,-4271.648883,9.592e-05,2]
[355619930,1741397432239,-773.90070351,9.594e-05,2]
[355619931,1741397432250,-2818.34613,9.594e-05,2]
[355619947,1741397437996,-2850.25735649,9.594e-05,2]
[355619948,1741397438006,-194.443484,9.594e-05,2]
[355619949,1741397438015,-870.42396003,9.594e-05,2]
[355619950,1741397438027,-3401.22492297,9.594e-05,2]
[355619951,1741397438036,-2454.62248568,9.597e-05,2]
[355619952,1741397438048,-1099.62597814,9.597e-05,2]
[355619953,1741397438059,-433.49178807,9.597e-05,2]
[355619954,1741397438070,-2454.76393811,9.597e-05,2]
[355619956,1741397438080,-158.54711,9.597e-05,2]
[355619958,1741397438089,-194.443484,9.597e-05,2]
[355619959,1741397438098,-4271.648883,9.597e-05,2]
[355619960,1741397438107,-600.0,9.62e-05,2]
[355619961,1741397438116,-1187.0,9.7e-05,2]
[355619962,1741397438125,-418.0,9.75e-05,2]
[355619963,1741397438135,-6442.50419,9.79e-05,2]
[355619964,1741397438144,-158.54711,9.79e-05,2]
[355619965,1741397438153,-194.443484,9.79e-05,2]
[355619966,1741397438163,-4271.648883,9.79e-05,2]
[355619967,1741397438172,-6442.50419,9.793e-05,2]
[355619968,1741397438185,-158.54711,9.793e-05,2]
[355619969,1741397438196,-194.443484,9.793e-05,2]
[355619970,1741397438206,-2606.75217723,9.793e-05,2]
[355619971,1741397438239,-1664.89670577,9.793e-05,2]
[355619972,1741397438250,-1547.02329371,9.795e-05,2]
[355619973,1741397438303,-4175.35911836,9.795e-05,2]
[355619974,1741397438315,-658.47843359,9.795e-05,2]
[355619976,1741397439908,-61.64334434,9.795e-05,2]
[355619977,1741397439918,-158.54711,9.795e-05,2]
[355619978,1741397439927,-194.443484,9.795e-05,2]
[355619979,1741397439937,-4271.648883,9.795e-05,2]
[355619980,1741397439946,-6442.50419,9.866e-05,2]
[355619981,1741397439955,-158.54711,9.866e-05,2]
[355619982,1741397439965,-194.443484,9.866e-05,2]
[355619983,1741397439974,-4271.648883,9.866e-05,2]
[355619984,1741397439983,-486.44966433,9.882e-05,2]
[355619985,1741397439992,-18672.2882,9.896e-05,2]
[355619986,1741397440001,-500.0,9.95e-05,2]
[355619987,1741397440011,-500.0,9.95e-05,2]
[355619988,1741397440020,-500.0,9.95e-05,2]
[355619989,1741397440029,-500.0,9.95e-05,2]
[355619990,1741397440038,-500.0,9.95e-05,2]
[355619991,1741397440050,-468.795,9.95e-05,2]
[355619992,1741397440060,-418.0,9.97e-05,2]
[355619993,1741397440070,-500.0,9.973e-05,2]
[355619994,1741397440079,-152.14383403,9.973e-05,2]
[355619995,1741397440088,-160.34171136,9.973e-05,2]